bitfinex/quotes_ETHUSD_20250217
["timestamp","ask_amount","ask_price","bid_price","bid_amount"]
[1739807122805,0.17653264,2784.3,2783.3,4.86105]
[1739807122996,0.17653264,2784.3,2783.3,1.2682]
[1739807123195,0.17653264,2784.3,2783.4,0.0477286]
[1739807124118,0.17653264,2784.3,2783.4,0.03592067]
[1739807124286,3.0,2784.8,2783.5,4.08225407]
[1739807124480,3.0,2784.8,2783.5,4.1298604]
[1739807124695,8.2557149,2785.0,2784.2,3.59166]
[1739807124696,0.1797149,2785.0,2784.2,3.59166]
[1739807124912,5.04259945,2785.7,2784.3,0.04685943]
[1739807125122,5.53471964,2785.7,2784.3,0.04685943]
[1739807125326,0.55347196,2785.6,2784.4,0.03590943]
[1739807125533,0.1840929,2785.8,2784.8,3.59081]
[1739807125832,0.17973843,2786.0,2785.2,1.3039]
[1739807126193,0.086737,2786.1,2785.3,0.04563987]
[1739807127319,0.04487233,2786.0,2785.3,0.04563987]
[1739807127670,3.0,2785.9,2784.3,1.2931]
[1739807127872,0.91637179,2785.8,2784.3,1.2931]
[1739807128036,0.87148949,2785.8,2784.3,1.2931]
[1739807128371,0.18019102,2786.0,2784.7,3.59103]
[1739807128554,0.18019102,2786.0,2784.8,3.59091]
[1739807128740,0.086737,2786.1,2785.3,3.59015]
[1739807128944,0.086737,2786.1,2785.5,3.59001]
[1739807129261,0.086737,2786.1,2785.6,0.04357573]
[1739807129439,0.086737,2786.1,2785.7,3.58966]
[1739807129642,0.086737,2786.1,2785.8,3.62551859]
[1739807129827,0.086737,2786.1,2785.8,3.63292146]
[1739807130029,0.086737,2786.1,2786.0,3.58937]
[1739807130577,0.0867,2788.2,2786.8,1.3724]
[1739807130874,0.0867,2788.6,2787.1,3.58793]
[1739807131041,0.0867,2788.6,2787.2,0.03586407]
[1739807131390,0.0867,2788.2,2787.2,0.04226224]
[1739807131574,0.0867,2788.0,2786.3,1.3724]
[1739807131773,0.0867,2787.8,2786.3,1.3724]
[1739807131982,0.5369742,2787.7,2786.3,1.3724]
[1739807132276,0.0867,2787.5,2786.1,0.361]
[1739807132685,0.0867,2787.5,2786.2,0.07489749]
[1739807132977,0.04485095,2787.4,2786.2,0.07489749]
[1739807133343,0.0867,2787.5,2785.9,1.3359]
[1739807133542,0.04486015,2787.4,2785.9,1.3359]
[1739807133767,0.0867,2787.2,2785.5,1.3359]
[1739807133970,0.0867,2787.2,2782.4,0.17625218]
[1739807133971,0.0867,2786.7,2785.0,1.3359]
[1739807134280,0.04487102,2786.6,2785.1,0.07581416]
[1739807134474,3.57882019,2786.7,2785.1,0.07581416]
[1739807134475,0.17646128,2786.4,2785.1,0.07581416]
[1739807134772,0.0867,2786.7,2785.2,3.62629717]
[1739807134973,0.0867,2786.7,2785.6,3.58978]
[1739807135247,0.0867,2787.1,2785.7,1.44675669]
[1739807135406,0.36,2788.0,2785.7,1.44675669]
[1739807135407,0.0867,2787.6,2785.8,3.58963]
[1739807135607,0.0867,2787.6,2786.0,3.58937]
[1739807135795,0.0867,2787.6,2786.1,0.07370389]
[1739807135991,0.0867,2787.6,2786.1,3.66292389]
[1739807136192,0.0867,2787.6,2786.2,0.36629239]
[1739807136435,0.0867,2787.6,2786.4,1.3359]
[1739807136739,0.0544602,2787.6,2787.1,3.58785]
[1739807136892,0.0544602,2787.6,2786.9,0.36]
[1739807137094,0.0544602,2787.6,2787.2,0.07268493]
[1739807137300,0.0544602,2787.6,2787.1,3.58783]
[1739807137499,0.0544602,2787.6,2787.3,0.07232971]
[1739807137694,0.0544602,2787.6,2787.1,1.26281862]
[1739807137695,0.0544602,2787.6,2787.2,0.10827979]
[1739807137942,0.0544602,2787.6,2787.4,0.07224648]
[1739807138245,0.0544602,2787.6,2787.5,0.07216325]
[1739807138601,0.0544602,2787.6,2787.2,3.62368684]
[1739807138802,0.0544602,2787.6,2787.3,0.91956219]
[1739807139014,0.0544602,2787.6,2787.3,0.07211664]
[1739807139409,0.0544602,2787.6,2787.0,1.3359]
[1739807139633,0.0544602,2787.6,2787.2,3.58783]
[1739807139823,0.0544602,2787.6,2787.5,3.58744]
[1739807140115,0.0544602,2787.6,2787.3,7.17516]
[1739807140116,0.0544602,2787.6,2787.3,0.07201748]
[1739807140454,0.0544602,2787.6,2787.4,0.0718498]
[1739807140854,0.0544602,2787.6,2786.6,2.24658313]
[1739807141059,0.0544602,2787.6,2786.6,1.5301]
[1739807141258,0.0544602,2787.6,2786.7,0.06935013]
[1739807141757,0.0544602,2787.6,2786.6,3.5885]
[1739807141941,0.0544602,2787.6,2786.8,0.06931756]
[1739807142254,0.09930637,2787.6,2786.9,0.06926727]
[1739807142459,0.55,2787.5,2786.9,0.06926727]
[1739807142762,0.0544602,2787.6,2786.3,0.03588236]
[1739807142943,0.0544602,2787.6,2786.7,3.58835]
[1739807143157,0.0544602,2787.6,2786.3,0.03588236]
[1739807143158,0.0544602,2787.6,2787.0,3.58796]
[1739807143473,0.0544602,2787.6,2787.2,3.58772]
[1739807143632,0.0544602,2787.6,2787.1,0.06668655]
[1739807143633,0.18216107,2789.9,2788.9,2.11251098]
[1739807143836,0.18216107,2789.9,2789.0,0.03584405]
[1739807144031,0.18216107,2789.9,2789.0,0.10092433]
[1739807144232,0.17867662,2789.1,2788.5,0.73475105]
[1739807144462,0.17867662,2789.1,2788.1,1.6042]
[1739807144665,0.17867662,2789.1,2787.7,0.71018032]
[1739807144870,1.0142,2789.0,2787.8,0.60878917]
[1739807145182,1.0142,2789.0,2787.5,1.5937]
[1739807145183,1.60886831,2789.0,2787.5,1.5937]
[1739807145379,0.55,2788.9,2787.5,1.5937]
[1739807145673,0.55,2788.9,2787.6,0.03586603]
[1739807145880,1.69979319,2788.9,2787.3,0.381]
[1739807146016,1.5642,2788.2,2786.4,1.5937]
[1739807146227,1.5642,2788.2,2786.4,5.18253]
[1739807146474,1.5642,2788.2,2786.5,0.73937412]
[1739807146682,1.5642,2788.2,2787.1,3.58789]
[1739807146885,1.5642,2788.2,2786.8,0.03587145]
[1739807147169,0.55,2787.9,2786.6,0.38]
[1739807147721,0.55,2787.9,2786.6,3.96848]
[1739807147917,0.55,2787.9,2786.7,0.396848]
[1739807148171,0.55,2787.9,2786.7,3.985288]
[1739807148521,0.55,2787.9,2786.7,0.396848]
[1739807148759,0.55,2787.9,2786.5,0.03587342]
[1739807149069,0.55,2787.9,2787.3,3.58767]
[1739807149272,0.55,2787.9,2787.4,0.03587174]
[1739807149569,1.0142,2788.2,2787.2,3.5878]
[1739807149940,0.55,2788.1,2786.9,0.73577489]
[1739807150141,0.55,2788.1,2787.0,0.43240149]
[1739807150590,0.55,2788.1,2786.7,4.00123334]
[1739807150767,1.0142,2788.2,2786.7,0.41287334]
[1739807150966,1.0142,2788.2,2787.3,3.58768]
[1739807151202,1.0142,2788.2,2787.0,3.58805]
[1739807151417,0.55,2788.1,2786.9,3.58819]
[1739807151704,0.55,2788.1,2787.0,0.42951518]
[1739807152098,0.55,2788.1,2787.1,0.05939489]
[1739807152600,0.55,2788.1,2786.8,0.74283133]
[1739807152771,0.55,2788.1,2786.9,3.64765139]
[1739807152969,0.55,2788.1,2787.1,3.58795]
[1739807153170,0.55,2788.1,2787.2,0.05931164]
[1739807154077,0.55,2788.1,2787.2,3.64704164]
[1739807154296,0.55,2788.1,2787.2,3.58773]
[1739807154498,0.55,2788.1,2787.3,0.0592284]
[1739807155166,0.55,2787.9,2786.8,0.70696183]
[1739807155371,0.55,2787.9,2786.9,0.48909157]
[1739807156367,0.55,2787.9,2786.9,0.05956139]
[1739807156591,1.0142,2787.8,2786.4,5.55545]
[1739807156808,0.55,2787.7,2786.5,0.06041635]
[1739807156987,1.0142,2787.6,2786.5,0.06041635]
[1739807157585,0.55,2787.5,2786.5,0.06041635]
[1739807157789,0.18093304,2787.1,2786.3,3.58898]
[1739807158003,0.18093304,2787.1,2786.4,0.41940129]
[1739807158205,0.18093304,2787.1,2786.5,3.58862]
[1739807158367,1.0142,2787.6,2786.5,3.58862]
[1739807158368,1.0142,2787.6,2787.1,3.58787]
[1739807158568,1.0142,2787.6,2787.2,0.06002685]
[1739807159025,1.0142,2787.6,2786.7,3.58837]
[1739807159026,0.55,2787.5,2786.7,3.58837]
[1739807159191,0.55,2787.5,2787.0,3.588]
[1739807159376,1.0142,2787.6,2787.1,0.06010645]
[1739807160100,1.0142,2787.6,2787.2,3.58781]
[1739807160325,1.19046241,2788.0,2787.2,0.05994295]
[1739807160475,1.19046241,2788.0,2787.3,3.58762]
[1739807160677,1.19046241,2788.0,2787.3,0.7235283]
[1739807160880,0.55,2787.9,2787.4,0.05977648]
[1739807161183,0.55,2787.9,2786.8,3.95934]
[1739807161424,0.55,2787.9,2786.9,0.06009786]
[1739807161610,0.55,2787.9,2786.6,0.37]
[1739807161790,0.55,2787.9,2786.7,0.06026439]
[1739807161994,1.5642,2787.7,2786.7,0.06026439]
[1739807162230,0.55,2787.5,2786.5,0.27997005]
[1739807162378,0.55,2787.5,2786.6,0.06034766]
[1739807163093,1.0142,2787.7,2786.7,0.03588094]
[1739807163299,0.18108756,2787.3,2786.9,3.58811]
[1739807163495,1.5642,2787.7,2786.8,0.06018112]
[1739807163683,1.5642,2787.7,2786.5,3.86862005]
[1739807163684,0.55,2787.6,2787.0,0.06014592]
[1739807164036,0.55,2787.6,2787.1,0.0581569]
[1739807164197,0.55,2787.4,2787.1,0.0581569]
[1739807164383,1.5642,2787.2,2786.5,0.27997005]
[1739807164733,0.55,2786.8,2785.8,0.369]
[1739807165023,0.55,2786.8,2785.9,0.05920362]
[1739807165329,0.55,2786.6,2785.3,3.59018]
[1739807165489,0.55,2786.4,2786.0,0.05912031]
[1739807165697,0.18178813,2786.1,2785.2,0.03589625]
[1739807165994,0.18178813,2786.1,2784.8,3.59092]
[1739807166150,0.18178813,2786.1,2785.2,3.59033]
[1739807166555,0.18178813,2786.1,2785.6,3.58987]
[1739807166737,0.18178813,2786.1,2785.3,0.05983473]
[1739807166738,0.18178813,2786.1,2785.7,0.0596252]
[1739807166944,1.0142,2786.3,2785.6,3.58978]
[1739807167143,1.0142,2786.3,2785.9,3.58949]
[1739807167457,1.0142,2786.3,2786.0,0.05948088]
[1739807168135,1.0142,2786.3,2785.3,0.03589272]
[1739807168449,1.0142,2786.3,2784.9,0.36268163]
[1739807168634,1.0142,2786.3,2785.4,3.65011086]
[1739807168834,1.0142,2786.3,2785.4,0.05998086]
[1739807169076,0.18345606,2786.1,2785.4,0.05998086]
[1739807169481,0.18345606,2786.1,2785.0,3.59054]
[1739807169679,0.18345606,2786.1,2785.5,0.05827888]
[1739807169896,1.1579928,2786.1,2785.2,3.59039]
[1739807170102,0.18345606,2786.1,2785.6,0.05819554]
[1739807170403,0.18345606,2786.1,2785.7,0.05811221]
[1739807170604,0.18345606,2786.1,2785.3,3.59018]
[1739807170897,0.18345606,2786.1,2785.4,0.05854042]
[1739807171454,0.18345606,2786.1,2785.1,0.72987086]
[1739807171997,0.18345606,2786.1,2785.1,1.52099995]
[1739807172161,0.18345606,2786.1,2785.2,0.05870713]
[1739807172838,0.55,2785.8,2785.2,0.05870713]
[1739807173151,0.55,2785.8,2784.7,3.59092]
[1739807173358,0.55,2785.8,2784.9,3.59077]
[1739807173585,1.0142,2785.9,2785.5,3.59]
[1739807173789,1.0142,2785.9,2785.2,3.59037]
[1739807174057,1.0142,2785.9,2785.0,0.359077]
[1739807174266,0.55,2785.8,2785.3,0.05866378]
[1739807174479,0.55,2785.8,2784.8,0.72598933]
[1739807174685,0.55,2785.8,2784.3,0.28019126]
[1739807174999,0.55,2785.8,2784.6,3.59114]
[1739807175295,1.0142,2785.9,2784.7,3.64809698]
[1739807175464,1.0142,2785.9,2785.1,3.59052]
[1739807175850,1.0142,2785.9,2785.2,0.05672011]
[1739807176122,0.55,2785.8,2785.2,0.05672011]
[1739807176269,0.55,2785.8,2784.7,0.361]
[1739807176635,0.55,2785.8,2784.7,1.11579695]
[1739807176782,0.55,2785.8,2784.8,0.0570536]
[1739807177154,0.55,2785.8,2784.8,0.09295849]
[1739807177356,0.55,2785.8,2784.9,3.59072]
[1739807177805,0.55,2785.8,2785.0,0.05693414]
[1739807177969,1.0142,2785.9,2785.0,0.05693414]
[1739807178168,1.0142,2785.9,2785.0,3.59065]
[1739807178366,1.0142,2785.9,2785.1,0.05685077]
[1739807178605,1.0142,2785.9,2784.9,3.59079]
[1739807178813,1.0142,2785.9,2785.0,0.359079]
[1739807178954,1.0142,2785.9,2785.0,0.05693414]
[1739807179160,0.55,2785.8,2785.0,0.05693414]
[1739807179453,0.55,2785.8,2785.1,0.05685077]
[1739807179968,0.55,2785.8,2784.9,3.5907]
[1739807180162,0.55,2785.8,2784.7,0.72057495]
[1739807180507,0.55,2785.8,2784.8,0.0571009]
[1739807180810,0.55,2785.8,2784.8,0.52976449]
[1739807181009,1.0142,2785.7,2784.8,0.0571009]
[1739807181765,0.55,2785.6,2784.8,0.0571009]
[1739807181965,0.55,2785.6,2784.5,0.71437816]
[1739807182201,0.55,2785.6,2784.6,0.05745313]
[1739807182358,1.0142,2785.3,2784.6,0.05745313]
[1739807182564,0.55,2785.2,2784.6,0.05745313]
[1739807182774,0.55,2785.2,2784.3,1.00341376]
[1739807182976,3.0,2785.1,2784.3,1.00341376]
[1739807183197,0.55,2784.9,2784.4,0.0559022]
[1739807183414,0.55,2784.7,2783.8,0.70201046]
[1739807183581,0.55,2784.7,2783.9,0.05631932]
[1739807183981,1.5642,2784.4,2783.0,3.59316]
[1739807184202,1.5642,2784.2,2783.5,0.71480959]
[1739807184407,1.0142,2784.2,2783.6,0.05656966]
[1739807184716,1.0142,2784.2,2783.5,0.71480959]
[1739807184937,0.55,2784.1,2783.5,0.71480959]
[1739807185102,0.55,2783.9,2783.6,0.05656966]
[1739807185308,1.0142,2783.8,2782.4,0.356]
[1739807185528,1.47062,2783.8,2782.5,3.78252]
[1739807185837,3.0,2783.6,2782.6,0.72365393]
[1739807185990,3.0,2783.6,2782.5,0.24617804]
[1739807186187,1.0142,2783.7,2783.6,3.59247]
[1739807186484,1.0142,2784.3,2783.6,0.05656966]
[1739807186932,1.0142,2784.3,2783.3,3.59283]
[1739807187087,1.0142,2784.3,2783.4,0.359283]
[1739807187288,1.0142,2784.3,2783.4,0.05673659]
[1739807187540,0.55,2783.4,2782.2,0.28040275]
[1739807187695,0.55,2783.4,2782.1,0.005]
[1739807187696,1.0142,2783.1,2782.1,0.005]
[1739807187892,0.55,2782.7,2782.3,0.0576551]
[1739807188096,1.0142,2782.6,2782.1,0.005]
[1739807188521,1.0142,2782.6,2782.2,0.05773864]
[1739807188734,1.0142,2782.6,2782.1,0.005]
[1739807188909,1.0142,2782.6,2782.3,0.0576551]
[1739807189116,1.0142,2782.6,2782.2,0.05773864]
[1739807189342,1.0142,2782.6,2782.4,0.05757157]
[1739807189495,1.0142,2782.6,2782.3,0.0576551]
[1739807189696,1.0142,2782.6,2782.5,0.05748804]
[1739807190238,1.0142,2782.6,2782.1,0.005]
[1739807190487,1.0142,2782.6,2782.2,0.05773864]
[1739807190832,1.0142,2782.6,2782.1,0.005]
[1739807191340,1.0142,2782.6,2782.2,0.05865817]
[1739807192598,0.55,2782.5,2782.1,0.005]
[1739807192789,1.47062,2782.6,2782.2,0.059796]
[1739807192996,1.47062,2782.6,2782.1,0.005]
[1739807193238,1.47062,2782.6,2782.2,0.059796]
[1739807193843,0.55,2782.5,2782.2,0.059796]
[1739807194011,1.5642,2782.3,2782.1,0.005]
[1739807194217,0.55,2782.0,2780.6,0.005]
[1739807194531,0.55,2781.7,2780.7,0.05929662]
[1739807194732,1.0142,2781.6,2780.7,0.05929662]
[1739807194931,0.55,2781.5,2780.7,0.05929662]
[1739807195675,4.5642,2781.4,2780.7,0.05929662]
[1739807195835,1.0142,2781.4,2780.7,0.05929662]
[1739807196890,0.55,2781.3,2780.7,0.05929662]
[1739807197097,0.55,2781.1,2780.7,0.05929662]
[1739807197442,0.55,2781.1,2780.6,0.005]
[1739807197641,1.0142,2781.2,2780.8,3.59599]
[1739807197861,1.0142,2781.6,2781.2,3.59545]
[1739807198074,1.0142,2782.1,2781.5,3.59507]
[1739807198242,6.01191134,2782.1,2781.3,0.05879495]
[1739807198440,3.61954492,2782.0,2780.8,3.59605]
[1739807198640,3.61954492,2782.0,2780.9,0.05912937]
[1739807198877,1.0142,2781.8,2780.7,3.59614]
[1739807199072,1.0142,2781.8,2781.0,0.05904576]
[1739807199293,1.0142,2781.8,2780.8,0.059213]
[1739807199472,1.0142,2781.8,2781.1,0.05896215]
[1739807199657,1.0142,2781.8,2780.6,0.005]
[1739807199658,0.55,2781.5,2780.6,0.005]
[1739807199854,0.55,2781.5,2781.2,0.05887855]
[1739807199855,0.55,2781.3,2781.2,0.05887855]
[1739807200179,1.0142,2781.0,2780.6,0.005]
[1739807200342,3.55,2780.8,2780.6,0.005]
[1739807200547,3.0,2780.8,2780.6,0.005]
[1739807200947,1.0142,2781.0,2780.6,0.005]
[1739807201346,1.0142,2781.0,2780.9,3.59595]
[1739807201591,1.0142,2781.6,2780.7,0.05929662]
[1739807201806,3.55,2781.6,2780.9,0.05912937]
[1739807201947,0.55,2781.2,2780.8,0.059213]
[1739807202147,0.55,2781.2,2781.0,0.05904576]
[1739807202351,3.0,2781.6,2780.9,0.05912937]
[1739807202569,3.0,2781.6,2780.6,0.005]
[1739807202570,0.55,2781.5,2781.1,0.05896215]
[1739807202753,3.55,2781.2,2780.6,0.005]
[1739807202948,3.0,2780.8,2780.6,0.005]
[1739807203172,7.99771134,2780.7,2780.6,0.005]
[1739807203493,3.55,2780.6,2779.7,0.1503212]
[1739807203670,0.55,2780.1,2779.7,0.1503212]
[1739807203875,3.55,2780.1,2779.7,0.1503212]
[1739807204076,3.55,2780.1,2779.8,0.06004954]
[1739807204374,3.55,2780.1,2779.7,0.1503212]
[1739807204824,3.72963316,2780.1,2779.7,0.1503212]
[1739807204970,8.54771134,2779.8,2779.7,0.1503212]
[1739807205170,0.55,2779.7,2778.1,3.59952]
[1739807205434,4.99771134,2779.0,2778.0,3.5997]
[1739807205580,4.99771134,2779.0,2778.2,0.06151943]
[1739807205775,4.99771134,2779.0,2777.8,3.59993]
[1739807205776,0.55,2778.9,2778.1,0.06160322]
[1739807205978,0.55,2778.9,2778.3,0.0615994]
[1739807206210,4.10477113,2778.9,2777.8,0.71140209]
[1739807206413,3.0,2778.5,2776.9,0.1503212]
[1739807206736,3.0,2777.4,2776.9,0.1503212]
[1739807206947,7.99771134,2777.0,2776.9,0.1503212]
[1739807207125,10.45082089,2777.0,2776.9,0.1503212]
[1739807207336,10.45082089,2777.0,2775.5,0.11107147]
[1739807207337,0.55,2776.8,2775.5,0.11107147]
[1739807207651,4.99771134,2775.6,2775.5,0.11107147]
[1739807207948,4.99771134,2775.6,2774.1,0.1503212]
[1739807207949,0.64687798,2775.8,2774.1,1.21558434]
[1739807208106,0.18152384,2776.5,2774.1,6.24933344]
[1739807208107,4.99771134,2776.4,2774.1,6.24933344]
[1739807208308,4.99771134,2776.7,2774.3,1.5022]
[1739807208545,4.99771134,2776.3,2774.3,1.5022]
[1739807208705,0.55,2776.1,2774.7,3.60395]
[1739807208891,4.99771134,2776.7,2774.9,1.5022]
[1739807209251,5.18159404,2777.8,2776.4,1.5022]
[1739807209456,5.69975344,2777.8,2776.3,0.71910889]
[1739807209596,5.69975344,2777.8,2776.5,0.0475196]
[1739807209597,4.99771134,2777.4,2776.5,0.0475196]
[1739807209790,3.0,2776.9,2775.5,4.33668019]
[1739807210149,3.0,2776.9,2775.4,5.10526]
[1739807210306,3.0,2777.0,2775.6,0.0482748]
[1739807210497,0.55,2776.8,2775.8,3.60249]
[1739807210709,0.64687798,2777.5,2775.7,0.04819087]
[1739807210912,3.0,2777.2,2775.9,0.04802301]
[1739807211114,3.0,2777.2,2776.1,3.60215]
[1739807211360,3.0,2777.2,2776.0,0.0479391]
[1739807211556,4.99771134,2776.9,2776.2,0.04777128]
[1739807211722,4.99771134,2776.9,2776.1,0.04785519]
[1739807212054,4.99771134,2776.9,2776.2,0.04777128]
[1739807212264,4.99771134,2776.5,2775.1,0.03601995]
[1739807213810,4.99771134,2776.9,2776.1,3.60217]
[1739807214041,4.99771134,2777.7,2777.1,3.60076]
[1739807214253,4.99771134,2778.1,2776.5,0.368]
[1739807214457,4.99771134,2778.1,2776.6,3.60152]
[1739807214768,0.51680488,2778.7,2776.8,1.5777]
[1739807214947,5.55248247,2778.9,2776.8,1.5777]
[1739807215267,4.99771134,2778.9,2778.1,3.59958]
[1739807215566,4.99771134,2778.9,2777.5,3.60033]
[1739807215567,4.99771134,2779.3,2777.7,5.17772]
[1739807215765,4.99771134,2779.3,2778.3,3.59919]
[1739807215973,4.99771134,2779.3,2778.0,3.59958]
[1739807216271,4.99771134,2778.9,2778.3,3.5993]
[1739807216470,4.99771134,2778.9,2778.5,3.59894]
[1739807216671,4.99771134,2779.3,2778.4,0.04597042]
[1739807216814,4.99771134,2778.9,2778.6,0.0458029]
[1739807217169,3.3660244,2780.0,2778.6,3.59892]
[1739807217170,4.99771134,2779.3,2778.6,3.59892]
[1739807217318,4.99771134,2779.7,2778.7,0.359892]
[1739807217515,4.99771134,2779.7,2778.7,4.00439389]
[1739807217714,3.0,2779.6,2778.7,0.40560389]
[1739807217933,4.99771134,2780.2,2779.1,3.59817]
[1739807218134,4.99771134,2780.2,2779.0,3.59836]
[1739807218332,4.99771134,2780.2,2778.4,0.70528204]
[1739807218333,4.99771134,2779.4,2779.2,0.0451264]
[1739807218617,4.99771134,2779.8,2779.2,3.59805]
[1739807218818,4.99771134,2779.8,2779.3,0.04490491]
[1739807219023,4.99771134,2780.2,2779.3,0.4092004]
[1739807219239,4.99771134,2780.2,2779.5,3.59765]
[1739807219524,4.99771134,2780.2,2779.6,0.0446538]
[1739807219924,4.99771134,2780.2,2779.3,3.59801]
[1739807220120,4.99771134,2780.2,2779.7,0.04442875]
[1739807220357,4.99771134,2780.6,2779.3,3.59802]
[1739807220564,4.99771134,2780.6,2779.8,0.04434506]
[1739807220724,4.99771134,2780.6,2779.7,3.59746]
[1739807220928,4.99771134,2780.6,2780.0,3.59709]
[1739807221125,4.99771134,2780.6,2779.8,0.04434506]
[1739807221473,4.99771134,2781.0,2780.3,3.59663]
[1739807221674,4.99771134,2781.0,2780.1,3.59694]
[1739807221825,4.99771134,2781.0,2780.0,3.59703]
[1739807221826,4.99771134,2781.0,2780.2,3.5968]
[1739807222038,4.99771134,2781.0,2780.5,3.59643]
[1739807222261,4.99771134,2781.0,2780.6,0.04367578]
[1739807222456,0.51680488,2781.7,2780.6,0.04367578]
[1739807222457,3.0,2781.3,2780.6,0.04367578]
[1739807222664,4.99771134,2781.0,2780.6,0.04367578]
[1739807222869,4.99771134,2781.0,2780.1,3.59689]
[1739807223068,3.0,2780.9,2780.7,0.04341098]
[1739807223274,4.99771134,2781.0,2780.5,3.59645]
[1739807223544,0.366,2782.0,2780.5,3.59645]
[1739807223545,0.69766582,2781.9,2780.8,0.04332735]
[1739807223748,0.69766582,2781.9,2780.5,3.59643]
[1739807223749,3.0,2781.4,2780.5,3.59643]
[1739807224084,4.99771134,2781.1,2780.4,3.5966]
[1739807224296,4.99771134,2781.1,2780.6,0.04324471]
[1739807224502,3.55,2781.4,2780.7,3.59617]
[1739807224642,3.55,2781.4,2780.7,0.04316107]
[1739807224994,4.99771134,2781.5,2781.0,3.59579]
[1739807225139,4.99771134,2781.9,2781.5,3.59518]
[1739807225340,4.99771134,2781.9,2781.2,3.59547]
[1739807225587,4.99771134,2781.9,2781.6,0.04240864]
[1739807225904,5.49748247,2781.9,2781.0,3.59571]
[1739807226184,4.99771134,2781.9,2780.7,3.59621]
[1739807226365,4.99771134,2781.9,2781.4,3.59521]
[1739807226694,0.365,2783.1,2780.5,0.365]
[1739807226695,0.43542109,2784.1,2781.5,0.07827794]
[1739807226987,4.99771134,2782.8,2782.0,3.59449]
[1739807227487,4.99771134,2782.8,2782.1,0.04167954]
[1739807227902,4.99771134,2782.4,2782.1,0.04167954]
[1739807228197,0.55,2782.2,2782.1,0.04167954]
[1739807228391,0.55,2782.2,2781.0,0.71871038]
[1739807228534,4.99771134,2781.4,2780.3,0.364]
[1739807228739,4.99771134,2781.8,2781.1,0.03951263]
[1739807228986,4.99771134,2781.4,2780.3,3.96068]
[1739807229290,4.99771134,2781.4,2780.6,3.59626]
[1739807229703,3.55,2781.7,2780.7,0.03984711]
[1739807229704,4.99771134,2781.0,2780.7,0.03984711]
[1739807229852,3.0,2780.9,2780.7,0.03984711]
[1739807230053,3.0,2780.9,2780.2,3.59686]
[1739807230278,3.0,2780.9,2780.3,0.04018168]
[1739807230595,3.55,2780.5,2780.3,0.04018168]
[1739807230742,3.55,2780.5,2779.2,0.364]
[1739807230743,3.55,2780.5,2778.8,3.59865]
[1739807230946,3.55,2780.5,2777.8,8.081]
[1739807230947,4.99771134,2779.0,2778.2,1.6616]
[1739807231260,4.99771134,2779.0,2778.2,5.261]
[1739807231575,0.364,2780.2,2778.3,3.67561293]
[1739807231779,0.364,2780.2,2778.5,5.26065]
[1739807231961,0.55,2778.9,2778.3,0.04039276]
[1739807232144,4.99771134,2778.7,2778.6,0.04014146]
[1739807232492,3.0,2778.6,2777.8,3.59992]
[1739807232689,4.99771134,2778.3,2777.4,3.60045]
[1739807232843,3.0,2778.2,2777.9,0.04072791]
[1739807233043,4.99771134,2778.7,2777.8,3.59992]
[1739807233319,4.99771134,2778.7,2777.9,0.04072791]
[1739807233482,3.0,2778.6,2777.9,0.04072791]
[1739807233696,3.0,2778.6,2777.7,3.60002]
[1739807233897,0.18268686,2779.4,2778.2,0.005]
[1739807233898,4.99771134,2779.1,2778.2,0.005]
[1739807234189,3.55,2779.0,2778.2,0.005]
[1739807234359,3.0,2778.6,2778.3,0.04039276]
[1739807234769,4.99771134,2778.7,2778.2,0.01]
[1739807234969,4.99771134,2778.7,2778.4,0.04030899]
[1739807235154,0.22277485,2780.0,2778.3,0.04039276]
[1739807235351,4.99771134,2779.6,2778.5,3.599]
[1739807235550,4.99771134,2778.8,2778.4,0.04030899]
[1739807235752,4.99771134,2779.2,2778.6,0.04014146]
[1739807235956,4.99771134,2779.2,2778.8,3.59863]
[1739807236272,4.99771134,2779.2,2778.9,3.63841022]
[1739807236483,4.99771134,2779.6,2778.9,3.63841022]
[1739807236819,0.55,2779.1,2778.9,0.03989022]
[1739807237097,3.55,2779.1,2778.2,0.01]
[1739807237300,4.99771134,2778.5,2778.2,0.01]
[1739807237869,4.99771134,2778.9,2778.3,3.64085695]
[1739807238199,4.99771134,2778.9,2778.3,0.04155695]
[1739807239192,0.55,2778.4,2778.3,0.04155695]
[1739807239392,0.55,2778.4,2776.3,3.60181]
[1739807239393,3.55,2778.4,2776.3,3.60191]
[1739807239600,4.99771134,2777.6,2776.9,3.60101]
[1739807239758,4.99771134,2777.6,2776.6,3.60152]
[1739807239963,4.99771134,2777.6,2777.1,3.60085]
[1739807240173,3.0,2777.5,2776.7,3.60136]
[1739807240504,3.0,2777.5,2776.8,0.04136927]
[1739807240505,3.0,2777.1,2776.8,0.04136927]
[1739807241016,0.55,2777.0,2775.8,3.60245]
[1739807241320,0.55,2777.0,2772.3,1.83457013]
[1739807241321,3.0,2776.1,2775.9,0.04212431]
[1739807241675,3.0,2776.1,2774.9,3.60362]
[1739807241876,3.0,2775.7,2775.0,0.04137539]
[1739807242103,3.0,2775.7,2775.0,3.64496539]
[1739807242307,4.99771134,2776.2,2775.3,3.60319]
[1739807242509,4.99771134,2776.2,2775.6,3.60272]
[1739807242710,4.99771134,2776.2,2775.0,0.76625593]
[1739807242711,4.99771134,2776.6,2775.4,0.04103954]
[1739807242975,11.99771134,2777.0,2776.6,3.60145]
[1739807243175,11.99771134,2777.0,2776.1,3.60217]
[1739807243176,7.0,2777.0,2776.1,3.60217]
[1739807243415,7.0,2777.0,2776.3,1.6074]
[1739807243617,7.0,2777.0,2775.6,3.60275]
[1739807243618,7.0,2777.0,2775.6,1.6074]
[1739807243927,4.99771134,2776.6,2775.1,1.6266]
[1739807244109,3.0,2775.3,2774.5,0.9774518]
[1739807244422,3.0,2775.3,2774.1,0.1503212]
[1739807244423,3.0,2774.8,2774.1,0.1503212]
[1739807244802,4.99771134,2774.9,2774.1,0.1503212]